fUST/lending_fUST_20250207
["ID","MTS","AMOUNT","RATE_DAILY","PERIOD"]
[352050496,1738903839148,-500.0,0.00015616,2]
[352050497,1738903839158,-500.0,0.00015616,2]
[352050498,1738903839167,-420.0,0.0001571,2]
[352050499,1738903839177,-742.21,0.00015753,2]
[352050500,1738903839187,-227.10676158,0.00015753,2]
[352050501,1738903839197,-946.28,0.00015753,2]
[352050502,1738903839207,-500.0,0.00015753,2]
[352050503,1738903839217,-500.0,0.00015753,2]
[352050504,1738903839227,-500.0,0.00015753,2]
[352050505,1738903839236,-500.0,0.00015767,2]
[352050506,1738903839246,-316.57870275,0.00015806,2]
[352050507,1738903839257,-1200.0,0.00015832,2]
[352050508,1738903839267,-742.21,0.0001589,2]
[352050509,1738903839277,-946.28,0.0001589,2]
[352050510,1738903839287,-500.0,0.0001589,2]
[352050511,1738903839297,-500.0,0.0001589,2]
[352050512,1738903839307,-191.88407038,0.0001589,2]
[352050513,1738903839317,-500.0,0.00015904,2]
[352050514,1738903839327,-500.72901716,0.00016,2]
[352050515,1738903839337,-189.0,0.00016,2]
[352050516,1738903839346,-742.21,0.00016027,2]
[352050517,1738903839356,-946.28,0.00016027,2]
[352050518,1738903839366,-500.0,0.00016027,2]
[352050519,1738903839376,-364.51792158,0.00016027,2]
[352050520,1738903839385,-500.0,0.00016041,2]
[352050521,1738903839394,-742.21,0.00016164,2]
[352050522,1738903839404,-946.28,0.00016164,2]
[352050523,1738903839414,-500.0,0.00016164,2]
[352050524,1738903839423,-500.0,0.00016178,2]
[352050525,1738903839432,-316.57870275,0.00016225,2]
[352050526,1738903839444,-500.0,0.00016264,2]
[352050527,1738903839454,-488.52500316,0.00016299,2]
[352050528,1738903839463,-500.0,0.00016299,2]
[352050529,1738903839473,-500.0,0.00016299,2]
[352050530,1738903839483,-500.0,0.00016299,2]
[352050531,1738903839493,-500.0,0.00016299,2]
[352050532,1738903839502,-500.0,0.00016299,2]
[352050533,1738903839513,-500.0,0.00016299,2]
[352050534,1738903839523,-500.0,0.00016299,2]
[352050535,1738903839533,-500.0,0.00016299,2]
[352050536,1738903839543,-500.0,0.00016299,2]
[352050537,1738903839552,-500.0,0.00016299,2]
[352050538,1738903839562,-500.0,0.00016299,2]
[352050539,1738903839571,-500.0,0.00016299,2]
[352050540,1738903839582,-419.49814918,0.00016299,2]
[352050541,1738903839592,-500.0,0.00016299,2]
[352050542,1738903839601,-500.0,0.00016299,2]
[352050543,1738903839611,-568.37659284,0.00016299,2]
[352050544,1738903839621,-503.07686475,0.00016299,2]
[352050545,1738903839631,-500.0,0.00016299,2]
[352050546,1738903839640,-500.0,0.00016299,2]
[352050547,1738903839650,-500.0,0.00016299,2]
[352050548,1738903839660,-500.0,0.00016299,2]
[352050549,1738903839669,-450.70790838,0.00016299,2]
[352050550,1738903839679,-552.3769833,0.00016299,2]
[352050551,1738903839689,-500.0,0.00016299,2]
[352050552,1738903839698,-500.0,0.00016299,2]
[352050553,1738903839708,-500.0,0.00016299,2]
[352050554,1738903839718,-500.0,0.00016299,2]
[352050555,1738903839728,-500.0,0.00016299,2]
[352050556,1738903839738,-500.0,0.00016299,2]
[352050557,1738903839747,-500.0,0.00016299,2]
[352050558,1738903839757,-2000.0,0.000163,2]
[352050559,1738903839767,-742.21,0.00016301,2]
[352050560,1738903839777,-946.28,0.00016301,2]
[352050561,1738903839787,-500.0,0.00016301,2]
[352050562,1738903839797,-500.0,0.00016315,2]
[352050563,1738903839806,-500.0,0.00016388,2]
[352050564,1738903839815,-445.0,0.000164,6]
[352050565,1738903839824,-500.0,0.00016407,2]
[352050566,1738903839834,-564.177,0.00016422,2]
[352050567,1738903839843,-724.53,0.00016437,2]
[352050568,1738903839853,-500.0,0.00016438,5]
[352050569,1738903839863,-500.0,0.00016438,5]
[352050570,1738903839872,-500.0,0.00016438,5]
[352050571,1738903839881,-500.0,0.00016438,5]
[352050572,1738903839890,-500.0,0.00016438,5]
[352050573,1738903839900,-500.0,0.00016438,5]
[352050574,1738903839910,-160.64087254,0.00016438,5]
[352050635,1738903843684,-666.36,0.000147,2]
[352050637,1738903843694,-339.35912746,0.00016438,5]
[352050639,1738903843704,-543.47,0.00016438,2]
[352050641,1738903843713,-500.0,0.00016438,3]
[352050643,1738903843722,-500.0,0.00016438,3]
[352050645,1738903843732,-312.86637524,0.00016438,3]
[352050647,1738903843741,-1000.0,0.00016438,2]
[352050649,1738903843750,-1000.0,0.00016438,2]
[352050651,1738903843760,-1000.0,0.00016438,2]
[352050653,1738903843769,-1003.68873546,0.00016438,2]
[352050655,1738903843779,-500.0,0.00016438,2]
[352050657,1738903843788,-500.0,0.00016438,2]
[352050659,1738903843797,-500.0,0.00016438,2]
[352050661,1738903843806,-500.0,0.00016438,2]
[352050663,1738903843815,-500.0,0.00016438,2]
[352050665,1738903843824,-500.0,0.00016438,2]
[352050667,1738903843834,-500.0,0.00016438,2]
[352050669,1738903843843,-500.0,0.00016438,2]
[352050671,1738903843851,-344.42,0.00016438,2]
[352050673,1738903843861,-344.42,0.00016438,2]
[352050675,1738903843870,-344.42,0.00016438,2]
[352050677,1738903843879,-344.42,0.00016438,2]
[352050680,1738903843888,-344.42,0.00016438,2]
[352050682,1738903843898,-344.42,0.00016438,2]
[352050684,1738903843907,-344.42,0.00016438,2]
[352050686,1738903843916,-344.42,0.00016438,2]
[352050688,1738903843926,-344.42,0.00016438,2]
[352050690,1738903843935,-344.42,0.00016438,2]
[352050692,1738903843944,-344.42,0.00016438,2]
[352050694,1738903843954,-344.42,0.00016438,2]
[352050696,1738903843963,-344.42,0.00016438,2]
[352050698,1738903843972,-742.21,0.00016438,2]
[352050700,1738903843981,-1000.0,0.00016438,7]
[352050701,1738903843990,-1000.0,0.00016438,7]
[352050703,1738903843999,-1000.0,0.00016438,7]
[352050705,1738903844008,-1000.0,0.00016438,7]
[352050707,1738903844017,-632.70740673,0.00016438,7]
[352050709,1738903844025,-946.28,0.00016438,2]
[352050711,1738903844034,-500.0,0.00016438,2]
[352050713,1738903844044,-500.0,0.00016438,2]
[352050715,1738903844053,-500.0,0.00016438,2]
[352050717,1738903844065,-500.0,0.00016438,2]
[352050719,1738903844076,-500.0,0.00016438,2]
[352050721,1738903844086,-500.0,0.00016438,2]
[352050723,1738903844095,-500.0,0.00016438,2]
[352050725,1738903844105,-500.0,0.00016438,2]
[352050727,1738903844115,-500.0,0.00016438,2]
[352050729,1738903844124,-500.0,0.00016438,2]
[352050731,1738903844133,-500.0,0.00016438,2]
[352050733,1738903844143,-500.0,0.00016438,2]
[352050735,1738903844152,-500.0,0.00016438,2]
[352050737,1738903844162,-500.0,0.00016438,2]
[352050739,1738903844171,-500.0,0.00016438,2]
[352050741,1738903844180,-500.0,0.00016438,2]
[352050743,1738903844190,-500.0,0.00016438,2]
[352050745,1738903844199,-500.0,0.00016438,2]
[352050747,1738903844209,-500.0,0.00016438,2]
[352050749,1738903844218,-500.0,0.00016438,2]
[352050751,1738903844227,-500.0,0.00016438,2]
[352050753,1738903844236,-500.0,0.00016438,2]
[352050755,1738903844245,-500.0,0.00016438,2]
[352050757,1738903844254,-500.0,0.00016438,2]
[352050759,1738903844263,-500.0,0.00016438,2]
[352050761,1738903844273,-500.0,0.00016438,2]
[352050778,1738903844410,-500.0,0.00016438,2]
[352050780,1738903844420,-500.0,0.00016438,2]
[352050782,1738903844429,-500.0,0.00016438,2]
[352050784,1738903844438,-500.0,0.00016438,2]
[352050786,1738903844447,-500.0,0.00016438,2]
[352050788,1738903844457,-500.0,0.00016438,2]
[352050790,1738903844465,-500.0,0.00016438,2]
[352050791,1738903844474,-500.0,0.00016438,2]
[352050793,1738903844484,-500.0,0.00016438,2]
[352050795,1738903844492,-500.0,0.00016438,2]
[352050797,1738903844502,-500.0,0.00016438,2]
[352050799,1738903844511,-500.0,0.00016438,2]
[352050801,1738903844520,-500.0,0.00016438,2]
[352050803,1738903844529,-500.0,0.00016438,2]
[352050805,1738903844538,-500.0,0.00016438,2]
[352050807,1738903844547,-500.0,0.00016438,2]
[352050809,1738903844557,-500.0,0.00016438,2]
[352050811,1738903844566,-500.0,0.00016438,2]
[352050813,1738903844575,-500.0,0.00016438,2]
[352050815,1738903844584,-500.0,0.00016438,2]
[352050817,1738903844594,-500.0,0.00016438,2]
[352050819,1738903844603,-500.0,0.00016438,2]
[352050821,1738903844613,-500.0,0.00016438,2]
[352050824,1738903844623,-500.0,0.00016438,2]
[352050826,1738903844633,-500.0,0.00016438,2]
[352050827,1738903844642,-500.0,0.00016438,2]
[352050829,1738903844651,-500.0,0.00016438,2]
[352050832,1738903844661,-500.0,0.00016438,2]
[352050833,1738903844671,-500.0,0.00016438,2]
[352050835,1738903844680,-500.0,0.00016438,2]
[352050837,1738903844690,-500.0,0.00016438,2]
[352050839,1738903844699,-500.0,0.00016438,2]
[352050841,1738903844708,-1200.0,0.00016438,2]
[352050843,1738903844718,-500.0,0.00016452,2]
[352050846,1738903844728,-500.0,0.00016453,5]
[352050847,1738903844738,-160.0,0.00016519,5]
[352050849,1738903844747,-500.0,0.00016575,2]
[352050852,1738903844757,-344.42,0.00016575,2]
[352050853,1738903844766,-742.21,0.00016575,2]
[352050856,1738903844776,-946.28,0.00016575,2]
[352050858,1738903844785,-500.0,0.00016575,2]
[352050860,1738903844795,-500.0,0.00016589,2]
[352050861,1738903844804,-212.54479673,0.0001659,5]
[352050864,1738903844813,-316.57870275,0.00016643,2]
[352050865,1738903844823,-1000.0,0.00016661,2]
[352050868,1738903844832,-500.0,0.00016712,2]
[352050870,1738903844842,-344.42,0.00016712,2]
[352050871,1738903844851,-742.21,0.00016712,2]
[352050874,1738903844860,-946.28,0.00016712,2]
[352050876,1738903844870,-500.0,0.00016712,2]
[352050878,1738903844880,-500.0,0.00016726,2]
[352050880,1738903844893,-1000.0,0.00016812,2]
[352050882,1738903844906,-344.42,0.00016849,2]
[352050884,1738903844915,-742.21,0.00016849,2]
[352050886,1738903844925,-946.28,0.00016849,2]
[352050888,1738903844935,-500.0,0.00016849,2]
[352050890,1738903844946,-331.62979171,0.00016863,2]
[352050892,1738903844956,-503.67002889,0.0001688,2]
[352050894,1738903844966,-1500.0,0.00016935,2]
[352050896,1738903844976,-882.97416019,0.00016955,2]
[352050898,1738903844985,-543.47,0.00016986,3]
[352050900,1738903844995,-344.42,0.00016986,2]
[352050902,1738903845004,-742.21,0.00016986,2]
[352050904,1738903845013,-946.28,0.00016986,2]
[352050906,1738903845023,-500.0,0.00016986,2]
[352050908,1738903845033,-17971.44394954,0.00017014,4]
[352050910,1738903845042,-316.57870275,0.00017062,2]
[352050912,1738903845051,-344.42,0.00017123,2]
[352050914,1738903845061,-742.21,0.00017123,2]
[352050915,1738903845072,-946.28,0.00017123,2]
[352050917,1738903845082,-432.70673287,0.00017123,2]
[352050920,1738903845091,-587.0,0.00017205,2]
[352050922,1738903845101,-2000.0,0.00017209,2]
[352050923,1738903845110,-845.54359088,0.00017223,2]
[352050925,1738903845119,-344.42,0.0001726,2]
[352050927,1738903845129,-742.21,0.0001726,2]
[352050929,1738903845140,-946.28,0.0001726,2]
[352050931,1738903845149,-839.9,0.000173,2]
[352050933,1738903845158,-845.54359088,0.00017323,2]
[352050935,1738903845167,-344.42,0.00017396,2]
[352050937,1738903845177,-742.21,0.00017396,2]
[352050939,1738903845186,-946.28,0.00017396,2]
[352050941,1738903845195,-845.54359088,0.00017423,2]
[352050943,1738903845205,-205.17947513,0.00017448,2]
[352050945,1738903845215,-316.57870275,0.00017481,2]
[352050947,1738903845224,-2500.0,0.00017483,2]
[352050949,1738903845234,-845.54359088,0.00017523,2]
[352050951,1738903845243,-344.42,0.00017533,2]
[352050953,1738903845253,-742.21,0.00017533,2]
[352050955,1738903845262,-946.28,0.00017533,2]
[352050957,1738903845272,-543.47,0.00017534,4]
[352050959,1738903845281,-845.54359088,0.00017623,2]
[352050961,1738903845291,-344.42,0.0001767,2]
[352050963,1738903845300,-742.21,0.0001767,2]
[352050965,1738903845310,-946.28,0.0001767,2]
[352050967,1738903845319,-5064.49036165,0.00017695,2]
[352050969,1738903845329,-5000.0,0.00017695,2]
[352050971,1738903845338,-5000.0,0.00017695,2]
[352050973,1738903845348,-5000.0,0.00017695,2]
[352050975,1738903845357,-5000.0,0.00017695,2]
[352050977,1738903845367,-37955.54787068,0.00017722,2]
[352050979,1738903845376,-151.0,0.00017722,2]
[352050981,1738903845386,-151.0,0.00017722,2]
[352050983,1738903845395,-845.54359088,0.00017723,2]
[352050985,1738903845407,-2666.02777838,0.00017757,2]
[352050987,1738903845416,-500.98344394,0.00017796,2]
[352050989,1738903845425,-151.0,0.00017796,2]
[352050991,1738903845441,-151.0,0.00017796,2]
[352050994,1738903845452,-151.0,0.00017796,2]
[352050996,1738903845463,-151.0,0.00017796,2]
[352050998,1738903845472,-151.0,0.00017796,2]
[352050999,1738903845481,-9857.82184413,0.00017796,5]
[352051001,1738903845492,-134449.56776477,0.00017796,5]
[352051003,1738903845502,-121467.75796173,0.00017797,2]
[352051005,1738903845512,-151.0,0.00017797,2]
[352051007,1738903845523,-152.650767,0.00017797,2]
[352051010,1738903845532,-151.739616,0.00017797,2]
[352051012,1738903845543,-153.090842,0.00017797,2]
[352051013,1738903845552,-153.090842,0.00017797,2]
[352051016,1738903845562,-352.113908,0.00017797,2]
[352051017,1738903845571,-352.113908,0.00017797,2]
[352051019,1738903845581,-459.403262,0.00017797,2]
[352051022,1738903845591,-459.403262,0.00017797,2]
[352051023,1738903845600,-152.29089,0.00017797,2]
[352051025,1738903845610,-151.0,0.00017797,2]
[352051027,1738903845620,-151.0,0.00017797,2]
[352051029,1738903845629,-151.0,0.00017797,2]
[352051031,1738903845639,-151.0,0.00017797,2]
[352051033,1738903845648,-151.0,0.00017797,2]
[352051035,1738903845657,-151.0,0.00017797,2]
[352051037,1738903845667,-151.0,0.00017797,2]
[352051039,1738903845677,-537.870803,0.00017797,2]
[352051042,1738903845688,-537.870803,0.00017797,2]
[352051044,1738903845698,-151.0,0.00017797,2]
[352051046,1738903845709,-151.0,0.00017797,2]
[352051048,1738903845719,-151.0,0.00017797,2]
[352051050,1738903845728,-151.0,0.00017797,2]
[352051052,1738903845737,-151.0,0.00017797,2]
[352051054,1738903845746,-151.0,0.00017797,2]
[352051056,1738903845756,-151.0,0.00017797,2]
[352051058,1738903845766,-151.0,0.00017797,2]
[352051060,1738903845777,-151.0,0.00017797,2]
[352051062,1738903845787,-151.0,0.00017797,2]
[352051064,1738903845796,-264.586561,0.00017797,2]
[352051066,1738903845806,-264.586561,0.00017797,2]
[352051068,1738903845815,-151.0,0.00017797,2]
[352051069,1738903845824,-151.0,0.00017797,2]
[352051070,1738903845833,-151.0,0.00017797,2]
[352051071,1738903845842,-151.0,0.00017797,2]
[352051072,1738903845851,-151.0,0.00017797,2]
[352051073,1738903845860,-151.0,0.00017797,2]
[352051074,1738903845869,-151.0,0.00017797,2]
[352051075,1738903845878,-151.0,0.00017797,2]
[352051076,1738903845888,-151.0,0.00017797,2]
[352051077,1738903845896,-151.0,0.00017797,2]
[352051078,1738903845906,-151.0,0.00017797,2]
[352051079,1738903845915,-151.0,0.00017797,2]
[352051080,1738903845924,-151.0,0.00017797,2]
[352051081,1738903845933,-151.0,0.00017797,2]
[352051082,1738903845943,-151.482033,0.00017797,2]
[352051083,1738903845952,-151.0,0.00017797,2]
[352051084,1738903845961,-293.942547,0.00017797,2]
[352051085,1738903845970,-151.0,0.00017797,2]
[352051086,1738903845979,-151.0,0.00017797,2]
[352051088,1738903845989,-151.0,0.00017797,2]
[352051089,1738903845999,-151.0,0.00017797,2]
[352051091,1738903846009,-214.303582,0.00017797,2]
[352051093,1738903846018,-151.0,0.00017797,2]
[352051095,1738903846028,-13264.03974987,0.00017804,2]
[352051098,1738903846037,-399.87077876,0.00017807,2]
[352051099,1738903846047,-500.0,0.00017807,2]
[352051101,1738903846056,-151.0,0.00017807,2]
[352051103,1738903846071,-151.0,0.00017807,2]
[352051105,1738903846080,-191.745256,0.00017807,2]
[352051107,1738903846090,-344.42,0.00017807,2]
[352051109,1738903846099,-151.0,0.00017807,2]
[352051111,1738903846110,-151.0,0.00017807,2]
[352051114,1738903846119,-151.0,0.00017807,2]
[352051116,1738903846130,-264.586561,0.00017807,2]
[352051117,1738903846139,-264.586561,0.00017807,2]
[352051119,1738903846151,-742.21,0.00017807,2]
[352051122,1738903846161,-946.28,0.00017807,2]
[352051123,1738903846170,-724.53,0.00017807,4]
[352051126,1738903846180,-155.328664,0.00017808,7]
[352051127,1738903846189,-151.0,0.00017808,2]
[352051129,1738903846198,-151.0,0.00017808,2]
[352051131,1738903846207,-537.870803,0.00017808,2]
[352051133,1738903846216,-537.870803,0.00017808,2]
[352051135,1738903846226,-5000.0,0.00017808,7]
[352051137,1738903846235,-5000.0,0.00017808,7]
[352051139,1738903846244,-5000.0,0.00017808,7]
[352051141,1738903846253,-2000.00908278,0.00017808,7]
[352051143,1738903846262,-1500.0,0.00017814,2]
[352051145,1738903846271,-255.520292,0.00017819,2]
[352051147,1738903846282,-845.54359088,0.00017823,2]
[352051149,1738903846291,-500.0,0.00017873,2]
[352051151,1738903846301,-571.56105648,0.00017873,2]
[352051153,1738903846311,-500.0,0.00017873,2]
[352051155,1738903846320,-340.0,0.0001789,2]
[352051157,1738903846330,-213.49176052,0.00017899,2]
[352051158,1738903846339,-213.49176052,0.00017899,2]
[352051160,1738903846349,-213.49176052,0.00017899,2]
[352051162,1738903846359,-213.49176052,0.00017899,2]
[352051163,1738903846368,-213.49176052,0.00017899,2]
[352051165,1738903846378,-213.49176052,0.00017899,2]
[352051167,1738903846388,-213.49176052,0.00017899,2]
[352051168,1738903846398,-213.49176052,0.00017899,2]
[352051170,1738903846409,-213.49176052,0.00017899,2]
[352051171,1738903846419,-213.49176052,0.00017899,2]
[352051172,1738903846430,-213.49176052,0.00017899,2]
[352051173,1738903846440,-213.49176052,0.00017899,2]
[352051174,1738903846450,-213.49176052,0.00017899,2]
[352051175,1738903846460,-213.49176052,0.00017899,2]
[352051176,1738903846470,-213.49176052,0.00017899,2]
[352051178,1738903846480,-213.49176052,0.00017899,2]
[352051179,1738903846490,-213.49176052,0.00017899,2]
[352051180,1738903846500,-213.49176052,0.00017899,2]
[352051181,1738903846510,-213.49176052,0.00017899,2]
[352051182,1738903846521,-213.49,0.00017899,2]
[352051183,1738903846530,-498.14744122,0.00017899,2]
[352051185,1738903846540,-498.14744122,0.00017899,2]
[352051187,1738903846549,-498.14744122,0.00017899,2]
[352051189,1738903846559,-498.14744122,0.00017899,2]
[352051190,1738903846568,-498.14744122,0.00017899,2]
[352051191,1738903846579,-498.14744122,0.00017899,2]
[352051192,1738903846590,-498.14744122,0.00017899,2]
[352051193,1738903846599,-498.14744122,0.00017899,2]
[352051194,1738903846608,-498.14744122,0.00017899,2]
[352051195,1738903846617,-498.14744122,0.00017899,2]
[352051196,1738903846627,-498.14744122,0.00017899,2]
[352051197,1738903846637,-498.14744122,0.00017899,2]
[352051198,1738903846647,-498.14744122,0.00017899,2]
[352051199,1738903846657,-498.14744122,0.00017899,2]
[352051200,1738903846666,-498.14744122,0.00017899,2]
[352051201,1738903846676,-498.14744122,0.00017899,2]
[352051202,1738903846686,-498.14744122,0.00017899,2]
[352051203,1738903846695,-498.14744122,0.00017899,2]
[352051204,1738903846704,-498.14744122,0.00017899,2]
[352051205,1738903846714,-498.14,0.00017899,2]
[352051206,1738903846724,-217.44674606,0.00017899,2]
[352051207,1738903846734,-217.44,0.00017899,2]
[352051208,1738903846743,-284.338444,0.00017899,2]
[352051209,1738903846753,-284.338444,0.00017899,2]
[352051210,1738903846763,-151.0,0.00017899,2]
[352051211,1738903846773,-151.0,0.00017899,2]
[352051212,1738903846782,-151.0,0.00017899,2]
[352051213,1738903846792,-153.090842,0.00017899,2]
[352051214,1738903846802,-153.090842,0.00017899,2]
[352051215,1738903846812,-153.090842,0.00017899,2]
[352051216,1738903846822,-153.090842,0.00017899,2]
[352051217,1738903846831,-352.113908,0.00017899,2]
[352051218,1738903846841,-352.113908,0.00017899,2]
[352051219,1738903846851,-352.113908,0.00017899,2]
[352051220,1738903846861,-352.113908,0.00017899,2]
[352051221,1738903846871,-459.403262,0.00017899,2]
[352051222,1738903846880,-459.403262,0.00017899,2]
[352051223,1738903846890,-459.403262,0.00017899,2]
[352051224,1738903846899,-459.403262,0.00017899,2]
[352051225,1738903846909,-151.0,0.00017899,2]
[352051226,1738903846919,-151.0,0.00017899,2]
[352051227,1738903846928,-537.870803,0.00017899,2]
[352051228,1738903846938,-537.870803,0.00017899,2]
[352051229,1738903846948,-151.0,0.00017899,2]
[352051230,1738903846958,-184.037984,0.00017899,2]
[352051231,1738903846967,-5915.48025888,0.00017899,2]
[352051232,1738903846978,-205.17947512,0.00017899,2]
[352051233,1738903846987,-151.0,0.00017899,2]
[352051234,1738903846997,-151.0,0.00017899,2]
[352051235,1738903847006,-151.0,0.00017899,2]
[352051236,1738903847016,-151.0,0.00017899,2]
[352051237,1738903847025,-151.0,0.00017899,2]
[352051238,1738903847038,-151.0,0.00017899,2]
[352051239,1738903847047,-151.0,0.00017899,2]
[352051240,1738903847057,-5915.48025885,0.00017899,2]
[352051241,1738903847069,-5915.48025885,0.00017899,2]
[352051242,1738903847079,-5915.48025885,0.00017899,2]
[352051243,1738903847089,-5915.48025885,0.00017899,2]
[352051244,1738903847098,-5915.48025885,0.000179,2]
[352051245,1738903847108,-5915.48025885,0.000179,2]
[352051246,1738903847119,-5915.48025885,0.000179,2]
[352051247,1738903847128,-5915.48025885,0.000179,2]
[352051248,1738903847138,-2879.62830026,0.000179,2]
[352051249,1738903847150,-2879.62830023,0.000179,2]
[352051250,1738903847159,-2879.62830023,0.000179,2]
[352051251,1738903847168,-2879.62830023,0.000179,2]
[352051252,1738903847179,-13409.34709163,0.000179,2]
[352051253,1738903847188,-13409.3470916,0.000179,2]
[352051254,1738903847198,-13409.3470916,0.000179,2]
[352051255,1738903847208,-13409.3470916,0.000179,2]
[352051256,1738903847218,-445.0,0.000179,7]
[352051257,1738903847227,-284.338444,0.000179,2]
[352051258,1738903847237,-284.338444,0.000179,2]
[352051259,1738903847246,-10011.66832443,0.000179,2]
[352051260,1738903847259,-153.090842,0.000179,2]
[352051261,1738903847268,-153.090842,0.000179,2]
[352051262,1738903847279,-352.113908,0.000179,2]
[352051263,1738903847290,-352.113908,0.000179,2]
[352051264,1738903847300,-459.403262,0.000179,2]
[352051265,1738903847310,-459.403262,0.000179,2]
[352051266,1738903847321,-152.66,0.000179,31]
[352051267,1738903847331,-152.66,0.000179,31]
[352051268,1738903847341,-152.66,0.000179,31]
[352051269,1738903847351,-151.0,0.000179,2]
[352051270,1738903847361,-151.0,0.000179,2]
[352051271,1738903847371,-151.0,0.000179,2]
[352051272,1738903847381,-192.317731,0.000179,2]
[352051273,1738903847392,-537.870803,0.000179,2]
[352051274,1738903847403,-537.870803,0.000179,2]
[352051275,1738903847413,-151.0,0.000179,2]
[352051276,1738903847423,-151.0,0.000179,2]
[352051277,1738903847434,-151.0,0.000179,2]
[352051278,1738903847444,-5915.48025885,0.000179,2]
[352051279,1738903847455,-151.0,0.000179,2]
[352051280,1738903847466,-264.586561,0.000179,2]
[352051281,1738903847477,-264.586561,0.000179,2]
[352051282,1738903847488,-151.0,0.000179,2]
[352051283,1738903847498,-152.078079,0.000179,2]
[352051284,1738903847508,-316.57870275,0.000179,2]
[352051285,1738903847518,-151.0,0.000179,2]
[352051286,1738903847528,-151.0,0.000179,2]
[352051287,1738903847539,-151.0,0.000179,2]
[352051288,1738903847550,-151.0,0.000179,2]
[352051289,1738903847560,-151.0,0.000179,2]
[352051290,1738903847570,-845.54359088,0.00017923,2]
[352051291,1738903847580,-344.44935638,0.00017944,2]
[352051292,1738903847593,-742.21,0.00017944,2]
[352051293,1738903847608,-946.34361761,0.00017944,2]
[352051294,1738903847622,-483.38994499,0.00017973,2]
[352051295,1738903847631,-382.14362987,0.00017973,2]
[352051296,1738903847771,-500.06468196,0.00017973,2]
[352051297,1738903847782,-500.0,0.00017973,2]
[352051298,1738903847792,-500.0,0.00017973,2]
[352051299,1738903847802,-500.0,0.00017973,2]
[352051300,1738903847812,-500.0,0.00017973,2]
[352051301,1738903847823,-500.0,0.00017973,2]
[352051302,1738903847833,-500.0,0.00017973,2]
[352051303,1738903847843,-537.870803,0.00017973,2]
[352051304,1738903847854,-537.870803,0.00017973,2]
[352051305,1738903847864,-151.0,0.00017973,2]
[352051306,1738903847873,-511.48839659,0.0001799,2]
[352051307,1738903847883,-919929.97543324,0.00017999,2]
[352051308,1738904837091,-2366.85873515,0.00013562,2]
[352051361,1738905032233,354.0,0.000192,120]
[352051461,1738905039998,-5000.0,0.00013426,2]
[352051462,1738905040008,-187.756579,0.00013699,2]
[352051463,1738905040017,-400.0,0.00013973,2]
[352051464,1738905040026,-777.90010361,0.00014527,2]
[352051465,1738905040036,-777.90010361,0.00014627,2]
[352051466,1738905040046,-777.90010361,0.00014727,2]
[352051467,1738905040056,-7438.69753278,0.00014758,2]
[352051468,1738905040065,-300.0,0.00014759,2]
[352051469,1738905040074,-327.2938943,0.00014761,2]
[352051470,1738905040084,-599.72,0.000148,2]
[352051471,1738905040093,-777.90010361,0.00014827,2]
[352051472,1738905040103,-378.0,0.000149,5]
[352051473,1738905040112,-777.90010361,0.00014927,2]
[352051474,1738905040122,-616.8449243,0.00014928,2]